[Event "FIDE World Rapid-ch Open 2018"]
[White "Grigoriants, Sergey"]
[Black "Kobo, Ori"]
[Site "St. Petersburg"]
[Round "9.40"]
[Annotator "ChessBase"]
[Result "1-0"]
[Date "2018.12.27"]
[WhiteElo "2540"]
[BlackElo "2494"]
[PlyCount "116"]
[TimeControl "900+10"]

1. e4 {[%emt 0:0:0]} g6 {[%emt 0:0:0]} 2. d4 {[%emt 0:0:0]} Bg7 {[%emt 0:0:0]} 3. Nc3 {[%emt 0:1:4]} d6 {[%emt 0:0:0]} 4. Be3 {[%emt 0:0:3]} a6 {[%emt 0:0:1]} 5. Nf3 {[%emt 0:0:15]} Nf6 {[%emt 0:0:5]} 6. a4 {[%emt 0:0:0]} 0-0 {[%emt 0:0:16]} 7. h3 {[%emt 0:0:8]} b6 {[%emt 0:0:18]} 8. Bd3 {[%emt 0:0:16]} Bb7 {[%emt 0:0:8]} 9. 0-0 {[%emt 0:0:5]} e6 {[%emt 0:0:0]} 10. Qd2 {[%emt 0:0:23]} Nc6 {[%emt 0:0:27]} 11. Bg5 {[%emt 0:1:22]} Qc8 {[%emt 0:1:47]} 12. Rfe1 {[%emt 0:1:46]} Re8 {[%emt 0:0:40]} 13. Bc4 {[%emt 0:1:27]
} Ne7 {[%emt 0:1:46]} 14. Ba2 {[%emt 0:0:57]} Rb8 {[%emt 0:0:0]} 15. Qf4 {[%emt 0:1:4]} Nd7 {[%emt 0:1:4]} 16. Qh4 {[%emt 0:0:13]} Nc6 {[%emt 0:0:3]} 17. Rad1 {[%emt 0:0:2]} Nb4 {[%emt 0:0:41]} 18. Bb1 {[%emt 0:0:34]
} c5 {[%emt 0:0:34]} 19. Ne2 {[%emt 0:0:24]} cxd4 {[%emt 0:0:0]} 20. Nexd4 {[%emt 0:0:2]} Nc6 {[%emt 0:0:37]} 21. c3 {[%emt 0:0:41]} Nxd4 22. Nxd4 Ne5 {[%emt 0:0:57]} 23. Nc2 {[%emt 0:4:37]} Nc4 {[%emt 0:1:37]
} 24. Ne3 {[%emt 0:0:27]} Nxe3 {[%emt 0:0:38]} 25. Rxe3 {[%emt 0:0:6]} Qc5 {[%emt 0:0:54]} 26. Be7 {[%emt 0:0:39]} Be5 {[%emt 0:0:16]} 27. Bf6 {[%emt 0:0:59]
} Bxf6 {[%emt 0:0:56]} 28. Qxf6 {[%emt 0:0:1]} Rbd8 {[%emt 0:0:0]} 29. Rd4 {[%emt 0:0:45]} e5 {[%emt 0:0:35]} 30. Ba2 {[%emt 0:0:26]} Qc7 {[%emt 0:0:54]} 31. Rd2 {[%emt 0:0:7]} Bc8 {[%emt 0:0:14]} 32. Red3 {[%emt 0:0:17]
} Be6 {[%emt 0:0:2]} 33. Bd5 {[%emt 0:0:5]} Bxd5 {[%emt 0:0:0]} 34. Rxd5 {[%emt 0:0:1]} Re6 {[%emt 0:0:1]} 35. Qg5 {[%emt 0:0:4]} Kg7 {[%emt 0:0:17]} 36. h4 {[%emt 0:0:7]} h6 {[%emt 0:0:9]} 37. Qe3 {[%emt 0:0:2]
} Qc4 {[%emt 0:0:18]} 38. Qxb6 {[%emt 0:0:8]} Ree8 {[%emt 0:0:0]} 39. Qb4 {[%emt 0:0:7]} Qxb4 {[%emt 0:0:12]} 40. cxb4 {[%emt 0:0:1]
} Rb8 {[%emt 0:0:1]} 41. b5 {[%emt 0:0:38]} axb5 {[%emt 0:0:1]} 42. Rxb5 {[%emt 0:0:5]
} Rxb5 {[%emt 0:0:2]} 43. axb5 {[%emt 0:0:1]} Rb8 {[%emt 0:0:0]} 44. Rd5 {[%emt 0:0:14]} Kf8 {[%emt 0:0:7]} 45. Kf1 {[%emt 0:0:10]} Ke7 {[%emt 0:0:2]} 46. Ke2 {[%emt 0:0:1]} Ra8 {[%emt 0:0:40]} 47. b6 {[%emt 0:0:12]
} Rb8 {[%emt 0:0:22]} 48. Rb5 {[%emt 0:0:1]} Kd7 {[%emt 0:0:0]} 49. b7 {[%emt 0:0:21]} Kc6 {[%emt 0:0:2]} 50. Rb3 {[%emt 0:0:1]} f5 {[%emt 0:0:21]
} 51. f3 {[%emt 0:0:9]} h5 {[%emt 0:0:17]} 52. Kd3 {[%emt 0:0:0]} d5 {[%emt 0:0:11]} 53. exd5+ {[%emt 0:0:24]} Kxd5 {[%emt 0:0:1]} 54. Rb5+ {[%emt 0:0:10]} Kc6 {[%emt 0:0:19]} 55. Kc4 {[%emt 0:0:11]} e4 {[%emt 0:0:11]
} 56. fxe4 {[%emt 0:0:6]} fxe4 {[%emt 0:0:2]} 57. Rb3 {[%emt 0:0:12]
} e3 {[%emt 0:0:18]} 58. Kd3 {[%emt 0:0:8]} Kd5 1-0

[Event "FIDE World Rapid-ch Open 2018"]
[White "Petrov, Nikita"]
[Black "Khismatullin, Denis"]
[Site "St. Petersburg"]
[Round "9.41"]
[Annotator "ChessBase"]
[Result "1-0"]
[Date "2018.12.27"]
[WhiteElo "2593"]
[BlackElo "2621"]
[PlyCount "70"]
[TimeControl "900+10"]

1. e4 {[%emt 0:0:0]} c5 {[%emt 0:0:0]} 2. Nc3 {[%emt 0:0:0]} a6 {[%emt 0:0:0]} 3. Nge2 {[%emt 0:0:2]} b5 {[%emt 0:0:25]} 4. g3 {[%emt 0:0:24]} Bb7 {[%emt 0:0:5]} 5. Bg2 {[%emt 0:0:2]} e6 {[%emt 0:0:9]} 6. 0-0 {[%emt 0:0:0]} Nf6 {[%emt 0:1:34]} 7. d3 {[%emt 0:0:5]} b4 {[%emt 0:0:19]} 8. Na4 {[%emt 0:0:3]} d6 {[%emt 0:1:17]} 9. f4 {[%emt 0:0:7]} Nbd7 {[%emt 0:0:0]} 10. f5 {[%emt 0:0:19]} exf5 {[%emt 0:2:0]} 11. Rxf5 {[%emt 0:0:9]} Qc7 {[%emt 0:0:12]} 12. b3 {[%emt 0:3:23]} g6 {[%emt 0:0:21]} 13. Rf1 {[%emt 0:0:3]
} Bg7 {[%emt 0:0:2]} 14. Nb2 {[%emt 0:0:31]} 0-0 {[%emt 0:0:0]} 15. Nf4 {[%emt 0:0:9]} Nb6 {[%emt 0:0:50]} 16. g4 {[%emt 0:1:10]} Rae8 {[%emt 0:1:8]} 17. Rb1 {[%emt 0:0:30]} d5 {[%emt 0:1:49]} 18. g5 {[%emt 0:0:0]} Nfd7 {[%emt 0:0:2]} 19. exd5 {[%emt 0:0:55]} Bd4+ {[%emt 0:2:6]} 20. Kh1 {[%emt 0:0:2]} Re5 21. Nc4 Rf5 {[%emt 0:3:1]} 22. Be4 {[%emt 0:0:0]} Nxd5 {[%emt 0:0:19]} 23. Nxd5 {[%emt 0:0:30]} Bxd5 {[%emt 0:0:16]} 24. Bxd5 {[%emt 0:0:30]} Rxd5 {[%emt 0:0:4]} 25. Bf4 {[%emt 0:0:26]} Qd8 {[%emt 0:0:1]
} 26. Qf3 {[%emt 0:0:24]} Rf5 {[%emt 0:0:5]} 27. Qg2 {[%emt 0:0:0]} Nb6 {[%emt 0:1:16]} 28. Nxb6 {[%emt 0:0:51]} Qxb6 29. Rbe1 f6 {[%emt 0:0:35]
} 30. Bd2 {[%emt 0:2:23]} fxg5 {[%emt 0:0:35]} 31. Rxf5 {[%emt 0:0:3]
} Rxf5 {[%emt 0:0:5]} 32. Bxg5 {[%emt 0:0:17]} Qd6 {[%emt 0:0:0]} 33. Re8+ {[%emt 0:1:30]} Rf8 {[%emt 0:0:20]} 34. Qa8 {[%emt 0:0:18]} Bg7 35. Be7 Qxe7 1-0

[Event "FIDE World Rapid-ch Open 2018"]
[White "AL-Sayed, Mohammed"]
[Black "Ragger, Markus"]
[Site "St. Petersburg"]
[Round "9.42"]
[Annotator "ChessBase"]
[Result "0-1"]
[Date "2018.12.27"]
[WhiteElo "2484"]
[BlackElo "2687"]
[PlyCount "94"]
[TimeControl "900+10"]

1. e4 {[%emt 0:0:0]} e5 {[%emt 0:0:0]} 2. Nf3 {[%emt 0:0:0]} Nc6 {[%emt 0:0:0]
} 3. Bc4 {[%emt 0:0:0]} Bc5 {[%emt 0:0:0]} 4. d3 {[%emt 0:0:0]} Nf6 {[%emt 0:0:0]} 5. c3 {[%emt 0:0:21]} a6 {[%emt 0:0:11]} 6. Bb3 {[%emt 0:0:27]
} d6 {[%emt 0:0:22]} 7. Nbd2 {[%emt 0:0:7]} Ba7 {[%emt 0:0:0]} 8. Nf1 {[%emt 0:0:20]} Ng4 {[%emt 0:0:8]} 9. Ne3 {[%emt 0:0:14]} Nxe3 {[%emt 0:0:26]} 10. Bxe3 {[%emt 0:0:2]} Bxe3 {[%emt 0:0:3]} 11. fxe3 {[%emt 0:0:2]
} 0-0 {[%emt 0:0:2]} 12. 0-0 {[%emt 0:0:4]} Qe7 {[%emt 0:0:0]} 13. Qe1 {[%emt 0:0:14]} Be6 {[%emt 0:0:12]} 14. Qg3 {[%emt 0:1:20]} Bxb3 {[%emt 0:0:18]} 15. axb3 {[%emt 0:0:3]} a5 {[%emt 0:0:11]} 16. Nh4 {[%emt 0:0:51]
} Qe6 {[%emt 0:5:26]} 17. Nf5 {[%emt 0:0:45]} g6 {[%emt 0:0:0]} 18. Qh4 {[%emt 0:1:55]} f6 {[%emt 0:0:56]} 19. Nh6+ {[%emt 0:1:56]} Kh8 {[%emt 0:3:17]} 20. Rf3 {[%emt 0:0:25]} Ne7 {[%emt 0:0:7]} 21. Raf1 {[%emt 0:0:34]
} Ng8 {[%emt 0:0:14]} 22. Nxg8 {[%emt 0:2:20]} Kxg8 {[%emt 0:0:0]} 23. Rxf6 {[%emt 0:1:31]} Rxf6 {[%emt 0:1:52]} 24. Qxf6 {[%emt 0:0:0]} Qxf6 25. Rxf6 Ra6 {[%emt 0:1:8]} 26. d4 {[%emt 0:2:19]} Rb6 {[%emt 0:0:0]} 27. dxe5 {[%emt 0:0:20]} Kg7 {[%emt 0:0:1]} 28. g4 {[%emt 0:2:4]} Rb5 {[%emt 0:0:4]} 29. Re6 {[%emt 0:0:44]} Kf7 {[%emt 0:0:9]} 30. Rf6+ {[%emt 0:0:1]
} Ke7 {[%emt 0:0:11]} 31. Rf3 {[%emt 0:0:0]} Rxb3 {[%emt 0:0:0]} 32. exd6+ {[%emt 0:0:4]} Kxd6 {[%emt 0:0:4]} 33. Rf2 {[%emt 0:0:14]} Ke5 {[%emt 0:0:1]} 34. Rd2 {[%emt 0:0:8]} Kxe4 35. Kf2 c5 {[%emt 0:0:29]} 36. h4 {[%emt 0:0:19]} a4 {[%emt 0:0:5]} 37. Ke2 {[%emt 0:0:27]} b5 {[%emt 0:0:11]
} 38. Kf2 {[%emt 0:0:35]} h6 {[%emt 0:0:1]} 39. h5 {[%emt 0:0:0]} g5 {[%emt 0:0:13]} 40. Re2 {[%emt 0:0:14]} b4 {[%emt 0:0:15]} 41. cxb4 {[%emt 0:0:2]} cxb4 {[%emt 0:0:1]} 42. Rc2 {[%emt 0:0:19]} Kd3 {[%emt 0:0:5]
} 43. Re2 {[%emt 0:0:16]} a3 {[%emt 0:0:3]} 44. bxa3 {[%emt 0:0:0]} bxa3 {[%emt 0:0:1]} 45. Re1 {[%emt 0:0:11]} a2 {[%emt 0:0:7]} 46. Ra1 {[%emt 0:0:10]} Ra3 {[%emt 0:0:2]} 47. Kf3 {[%emt 0:0:2]} Kc2 {[%emt 0:0:10]
} 0-1

[Event "FIDE World Rapid-ch Open 2018"]
[White "Vitiugov, Nikita"]
[Black "Pershin, Denis"]
[Site "St. Petersburg"]
[Round "9.43"]
[Annotator "RC"]
[Result "1-0"]
[Date "2018.12.27"]
[WhiteElo "2719"]
[BlackElo "2400"]
[PlyCount "63"]
[TimeControl "900+10"]

1. e4 {[%emt 0:0:0]} c6 {[%emt 0:0:0]} 2. d4 {[%emt 0:0:0]} d5 {[%emt 0:0:0]} 3. e5 {[%emt 0:0:0]} Bf5 {[%emt 0:0:0]} 4. Bd3 {[%emt 0:0:18]} Bxd3 {[%emt 0:0:0]} 5. Qxd3 {[%emt 0:0:2]} c5 {[%emt 0:0:19]} 6. Ne2 {[%emt 0:2:23]
} Nc6 {[%emt 0:0:4]} 7. c3 {[%emt 0:0:9]} e6 {[%emt 0:0:8]} 8. 0-0 {[%emt 0:0:3]} Qb6 {[%emt 0:0:27]} 9. Nd2 {[%emt 0:0:16]} Rc8 {[%emt 0:0:15]
} 10. Nf3 {[%emt 0:0:28]} cxd4 {[%emt 0:1:11]} 11. cxd4 {[%emt 0:0:2]
} Nb4 {[%emt 0:0:33]} 12. Qb3 {[%emt 0:1:37]} Ne7 {[%emt 0:0:0]} 13. Bd2 {[%emt 0:0:12]} Nec6 {[%emt 0:0:47]} 14. Rfc1 {[%emt 0:0:54]} Be7 {[%emt 0:1:34]} 15. a3 {[%emt 0:0:2]} Na6 {[%emt 0:0:3]} 16. Qd3 {[%emt 0:0:8]
} h6 {[%emt 0:1:39]} 17. b4 {[%emt 0:0:8]} Nc7 {[%emt 0:0:2]
} 18. Nf4 {[%emt 0:0:24]} Kd7 {[%emt 0:2:52]} 19. Nh5 {[%emt 0:0:42]} g6 {[%emt 0:3:6]
} 20. Nf6+ {[%emt 0:0:7]} Bxf6 {[%emt 0:0:8]} 21. exf6 {[%emt 0:0:2]
} Nb5 {[%emt 0:0:9]} 22. Rc5 {[%emt 0:0:30]} a6 {[%emt 0:0:0]} 23. a4 {[%emt 0:0:20]} Nd6 {[%emt 0:0:33]} 24. b5 {[%emt 0:0:1]} axb5 {[%emt 0:0:3]} 25. axb5 {[%emt 0:0:2]} Nxd4 {[%emt 0:1:50]} 26. Ne5+ {[%emt 0:0:2]
} Kd8 {[%emt 0:0:2]} 27. Rxc8+ {[%emt 0:0:16]} Kxc8 {[%emt 0:0:0]} 28. Ra8+ {[%emt 0:0:23]} Kc7 {[%emt 0:0:2]} 29. Rxh8 {[%emt 0:0:5]
} Ne4 {[%emt 0:0:19]} 30. Bf4 {[%emt 0:0:25]} Qc5 {[%emt 0:0:31]} 31. Nc6+ {[%emt 0:0:23]
} e5 {[%emt 0:0:3]} 32. Bxe5+ {[%emt 0:0:31]} 1-0

[Event "FIDE World Rapid-ch Open 2018"]
[White "Yakubboev, Nodirbek"]
[Black "Adly, Ahmed"]
[Site "St. Petersburg"]
[Round "9.44"]
[Annotator "ChessBase"]
[Result "1-0"]
[Date "2018.12.27"]
[WhiteElo "2556"]
[BlackElo "2626"]
[PlyCount "75"]
[TimeControl "900+10"]

1. d4 {[%emt 0:0:0]} Nf6 {[%emt 0:0:12]} 2. Bg5 {[%emt 0:0:25]} Ne4 {[%emt 0:0:1]
} 3. Bf4 c5 4. f3 {[%emt 0:0:9]} Nf6 {[%emt 0:0:10]} 5. d5 {[%emt 0:1:14]
} g6 {[%emt 0:0:2]} 6. c4 {[%emt 0:0:41]} b5 {[%emt 0:0:14]} 7. cxb5 {[%emt 0:0:27]} Bg7 {[%emt 0:0:2]} 8. Nc3 {[%emt 0:0:7]} 0-0 {[%emt 0:0:7]
} 9. e4 {[%emt 0:0:15]} d6 {[%emt 0:0:17]} 10. Bc4 {[%emt 0:0:0]} a6 {[%emt 0:0:9]} 11. Nge2 {[%emt 0:0:51]} Nh5 {[%emt 0:0:4]} 12. Bg5 {[%emt 0:0:52]} Nd7 {[%emt 0:0:8]} 13. a4 {[%emt 0:1:58]} Ne5 {[%emt 0:0:0]} 14. b3 {[%emt 0:0:44]} f5 {[%emt 0:0:13]} 15. 0-0 {[%emt 0:1:28]} f4 {[%emt 0:0:3]
} 16. Bh4 {[%emt 0:1:39]} h6 {[%emt 0:0:1]} 17. Be1 {[%emt 0:0:0]} g5 {[%emt 0:0:57]} 18. h3 {[%emt 0:0:20]} Kh7 {[%emt 0:0:46]} 19. Ra2 {[%emt 0:0:40]} Rg8 {[%emt 0:0:12]} 20. bxa6 {[%emt 0:0:19]} Bf6 {[%emt 0:0:47]
} 21. Nc1 {[%emt 0:1:6]} Rg6 {[%emt 0:2:26]} 22. Nd3 {[%emt 0:0:0]} Qh8 {[%emt 0:0:2]} 23. Nb5 {[%emt 0:0:28]} Bxa6 {[%emt 0:2:27]} 24. Nxe5 {[%emt 0:0:9]} Bxe5 {[%emt 0:0:2]} 25. Nc7 {[%emt 0:0:3]} Bxc4 {[%emt 0:1:22]
} 26. bxc4 {[%emt 0:0:1]} Rc8 {[%emt 0:0:0]} 27. Nb5 {[%emt 0:0:18]
} Ng3 {[%emt 0:0:10]} 28. Bxg3 {[%emt 0:0:23]} fxg3 {[%emt 0:0:0]} 29. a5 {[%emt 0:0:8]} Rf6 {[%emt 0:2:45]} 30. a6 {[%emt 0:0:32]} Rcf8 {[%emt 0:0:0]} 31. a7 {[%emt 0:1:24]} g4 {[%emt 0:0:1]} 32. Qa4 {[%emt 0:1:15]
} Rxf3 {[%emt 0:2:23]} 33. gxf3 {[%emt 0:0:23]} Bd4+ {[%emt 0:0:0]} 34. Nxd4 {[%emt 0:0:11]} Qxd4+ {[%emt 0:0:1]} 35. Kg2 {[%emt 0:0:0]} gxh3+ {[%emt 0:0:7]} 36. Kxh3 {[%emt 0:0:3]} Qe5 {[%emt 0:0:3]} 37. a8=Q {[%emt 0:0:21]} Rf4 {[%emt 0:0:13]} 38. Q4e8 {[%emt 0:0:11]} 1-0

[Event "FIDE World Rapid-ch Open 2018"]
[White "Vallejo Pons, Francisco"]
[Black "Van Foreest, Jorden"]
[Site "St. Petersburg"]
[Round "9.45"]
[Annotator "ChessBase"]
[Result "1/2-1/2"]
[Date "2018.12.27"]
[WhiteElo "2695"]
[BlackElo "2614"]
[PlyCount "43"]
[TimeControl "900+10"]

1. e4 {[%emt 0:0:0]} e5 {[%emt 0:0:0]} 2. Nf3 {[%emt 0:0:0]} Nc6 {[%emt 0:0:0]
} 3. Bb5 {[%emt 0:0:2]} Nf6 {[%emt 0:0:14]} 4. 0-0 {[%emt 0:0:0]} Nxe4 {[%emt 0:0:5]} 5. Re1 {[%emt 0:0:2]} Nd6 {[%emt 0:0:4]} 6. Nxe5 {[%emt 0:0:4]} Be7 {[%emt 0:0:4]} 7. Bf1 {[%emt 0:0:6]} 0-0 {[%emt 0:0:19]
} 8. d4 {[%emt 0:0:28]} Nf5 {[%emt 0:0:22]} 9. c3 {[%emt 0:0:0]} Nxe5 {[%emt 0:0:16]} 10. dxe5 {[%emt 0:0:2]} d6 {[%emt 0:0:32]} 11. exd6 {[%emt 0:0:3]} Nxd6 {[%emt 0:0:50]} 12. Bf4 {[%emt 0:1:24]} Be6 {[%emt 0:0:37]
} 13. Na3 {[%emt 0:1:8]} c6 {[%emt 0:1:47]} 14. Qc2 {[%emt 0:0:0]} Bg5 {[%emt 0:0:23]} 15. Be5 {[%emt 0:0:59]} Bf6 {[%emt 0:0:5]} 16. Bg3 {[%emt 0:1:58]} Bh4 {[%emt 0:0:5]} 17. Bf4 {[%emt 0:1:17]} Bg5 {[%emt 0:0:3]
} 18. Qd2 {[%emt 0:0:18]} Bxf4 {[%emt 0:0:28]} 19. Qxf4 {[%emt 0:0:2]
} Qc7 {[%emt 0:1:36]} 20. Bc4 {[%emt 0:1:23]} Nb5 {[%emt 0:0:0]} 21. Qxc7 {[%emt 0:0:41]} Nxc7 {[%emt 0:0:2]} 22. Rad1 {[%emt 0:0:3]} 1/2-1/2

[Event "FIDE World Rapid-ch Open 2018"]
[White "Tang, Andrew"]
[Black "Kovalev, Vladislav"]
[Site "St. Petersburg"]
[Round "9.46"]
[Annotator "ChessBase"]
[Result "1-0"]
[Date "2018.12.27"]
[WhiteElo "2487"]
[BlackElo "2683"]
[PlyCount "157"]
[TimeControl "900+10"]

1. d4 {[%emt 0:0:0]} Nf6 {[%emt 0:3:29]} 2. c4 {[%emt 0:0:0]} g6 {[%emt 0:0:0]} 3. f3 {[%emt 0:0:0]} Bg7 {[%emt 0:0:1]} 4. e4 {[%emt 0:0:0]} d6 {[%emt 0:0:1]
} 5. Nc3 {[%emt 0:0:1]} 0-0 {[%emt 0:0:1]} 6. Nge2 {[%emt 0:0:0]} c5 {[%emt 0:0:4]} 7. d5 {[%emt 0:0:1]} e6 {[%emt 0:0:0]} 8. Ng3 {[%emt 0:0:2]
} exd5 {[%emt 0:0:2]} 9. cxd5 {[%emt 0:0:1]} a6 {[%emt 0:0:0]} 10. a4 {[%emt 0:0:2]} h5 {[%emt 0:0:7]} 11. Bg5 {[%emt 0:0:2]} Nbd7 {[%emt 0:0:2]} 12. Be2 {[%emt 0:0:3]} Qb6 {[%emt 0:0:25]} 13. Qd2 {[%emt 0:0:5]
} Nh7 {[%emt 0:0:12]} 14. a5 {[%emt 0:0:1]} Qc7 {[%emt 0:0:0]} 15. Bh6 {[%emt 0:0:2]} h4 {[%emt 0:0:12]} 16. Bxg7 {[%emt 0:0:5]} Kxg7 {[%emt 0:0:1]} 17. Nf1 {[%emt 0:0:2]} Qd8 {[%emt 0:1:11]} 18. Ne3 {[%emt 0:0:59]
} f5 {[%emt 0:0:4]} 19. exf5 {[%emt 0:0:31]} gxf5 {[%emt 0:0:0]} 20. Nc4 {[%emt 0:1:14]} Qf6 {[%emt 0:0:8]} 21. Qf4 {[%emt 0:0:30]} Ne5 {[%emt 0:0:24]} 22. Nxe5 {[%emt 0:0:6]} dxe5 {[%emt 0:0:1]} 23. Qc4 {[%emt 0:0:7]
} Bd7 {[%emt 0:0:53]} 24. Qxc5 {[%emt 0:1:15]} Rfc8 {[%emt 0:0:0]} 25. Qb4 {[%emt 0:0:11]} Rab8 {[%emt 0:0:4]} 26. 0-0 {[%emt 0:1:20]} Nf8 {[%emt 0:0:15]} 27. f4 {[%emt 0:1:27]} e4 {[%emt 0:0:12]} 28. Rad1 {[%emt 0:0:50]
} b6 {[%emt 0:2:49]} 29. d6 {[%emt 0:4:34]} bxa5 {[%emt 0:0:0]} 30. Qa3 {[%emt 0:0:1]} a4 {[%emt 0:2:30]} 31. Nxa4 {[%emt 0:2:41]} Rc2 {[%emt 0:0:8]} 32. Rfe1 {[%emt 0:1:6]} Ne6 {[%emt 0:0:47]} 33. g3 {[%emt 0:1:45]
} Nd4 {[%emt 0:1:33]} 34. Nc3 {[%emt 0:0:46]} Rbxb2 {[%emt 0:0:0]} 35. Nd5 {[%emt 0:0:39]} Rxe2 {[%emt 0:0:27]} 36. Rxe2 {[%emt 0:0:9]
} Nf3+ {[%emt 0:2:4]} 37. Kf1 {[%emt 0:0:4]} Bb5 {[%emt 0:0:21]} 38. Nxf6 {[%emt 0:0:2]} Rxe2 {[%emt 0:0:3]} 39. Rd5 Nxh2+ {[%emt 0:0:26]} 40. Kg1 {[%emt 0:0:30]
} Nf3+ {[%emt 0:0:1]} 41. Kf1 {[%emt 0:0:1]} hxg3 {[%emt 0:0:0]} 42. Nh5+ {[%emt 0:0:1]} Kg6 {[%emt 0:0:4]} 43. Nxg3 {[%emt 0:0:1]
} Ra2+ {[%emt 0:0:16]} 44. Rxb5 {[%emt 0:0:1]} Rxa3 {[%emt 0:0:0]} 45. Rd5 {[%emt 0:0:18]} Nh2+ {[%emt 0:0:20]} 46. Ke2 {[%emt 0:0:13]} Ra2+ {[%emt 0:0:0]} 47. Kd1 {[%emt 0:0:1]} Ng4 {[%emt 0:0:14]} 48. d7 {[%emt 0:0:9]} Ne3+ {[%emt 0:0:8]} 49. Kc1 {[%emt 0:0:2]} Nxd5 {[%emt 0:0:1]} 50. d8=Q {[%emt 0:0:1]
} Nf6 {[%emt 0:0:12]} 51. Qc8 {[%emt 0:0:38]} Ra5 {[%emt 0:0:0]} 52. Qe6 {[%emt 0:0:14]} Rc5+ {[%emt 0:0:12]} 53. Kd2 {[%emt 0:0:11]} a5 {[%emt 0:0:2]} 54. Ne2 {[%emt 0:0:22]} a4 {[%emt 0:0:23]} 55. Nc3 {[%emt 0:0:0]} a3 {[%emt 0:0:14]} 56. Qb3 {[%emt 0:0:25]} Ra5 {[%emt 0:0:12]} 57. Ke2 {[%emt 0:0:15]} Ra8 {[%emt 0:0:12]} 58. Qb7 {[%emt 0:0:8]} Rh8 {[%emt 0:0:5]
} 59. Qa6 {[%emt 0:0:6]} Rh2+ {[%emt 0:0:3]} 60. Kf1 {[%emt 0:0:9]
} Rd2 {[%emt 0:0:22]} 61. Qxa3 {[%emt 0:0:8]} Rd3 {[%emt 0:0:0]} 62. Ke1 {[%emt 0:0:15]} Re3+ {[%emt 0:0:18]} 63. Kd2 {[%emt 0:0:5]} Rd3+ {[%emt 0:0:1]} 64. Kc2 {[%emt 0:0:2]} Ng4 {[%emt 0:0:9]} 65. Qe7 {[%emt 0:0:26]
} Ne3+ {[%emt 0:0:1]} 66. Kb2 {[%emt 0:0:2]} Nc4+ {[%emt 0:0:0]} 67. Kb3 {[%emt 0:0:8]} Ne3 {[%emt 0:0:2]} 68. Qg5+ {[%emt 0:0:15]} Kf7 {[%emt 0:0:1]} 69. Qh5+ {[%emt 0:0:5]} Kf6 {[%emt 0:0:5]} 70. Qh8+ {[%emt 0:0:4]
} Kf7 {[%emt 0:0:4]} 71. Kb4 {[%emt 0:0:2]} Ke6 {[%emt 0:0:0]} 72. Kc5 {[%emt 0:0:21]} Kf7 {[%emt 0:0:8]} 73. Qh7+ {[%emt 0:0:25]} Kf6 {[%emt 0:0:2]} 74. Qh8+ {[%emt 0:0:6]} Kg6 {[%emt 0:0:1]} 75. Kc6 {[%emt 0:0:7]
} Kf7 {[%emt 0:0:24]} 76. Nb5 {[%emt 0:0:8]} Nc4 77. Qh5+ {[%emt 0:0:9]
} Kf6 {[%emt 0:0:21]} 78. Qg5+ {[%emt 0:0:1]} Ke6 {[%emt 0:0:0]} 79. Qg8+ {[%emt 0:0:2]} 1-0

[Event "FIDE World Rapid-ch Open 2018"]
[White "Le, Quang Liem"]
[Black "Levin, Evgeny A."]
[Site "St. Petersburg"]
[Round "9.47"]
[Annotator "RC"]
[Result "0-1"]
[Date "2018.12.27"]
[WhiteElo "2714"]
[BlackElo "2516"]
[PlyCount "58"]
[TimeControl "900+10"]

1. e4 {[%emt 0:0:0]} e6 {[%emt 0:0:0]} 2. d4 {[%emt 0:0:0]} d5 {[%emt 0:0:0]} 3. Nc3 {[%emt 0:0:0]} Nf6 {[%emt 0:0:0]} 4. e5 {[%emt 0:0:0]} Nfd7 {[%emt 0:0:0]} 5. f4 {[%emt 0:0:0]} c5 {[%emt 0:0:0]} 6. Nf3 {[%emt 0:0:1]
} Nc6 {[%emt 0:0:0]} 7. Be3 {[%emt 0:0:1]} a6 {[%emt 0:0:2]
} 8. Qd2 {[%emt 0:0:8]} b5 {[%emt 0:0:1]} 9. Nd1 {[%emt 0:0:11]} b4 {[%emt 0:0:7]
} 10. c4 {[%emt 0:0:6]} cxd4 {[%emt 0:0:41]} 11. Nxd4 {[%emt 0:0:5]
} Nxd4 {[%emt 0:0:23]} 12. Bxd4 {[%emt 0:0:2]} dxc4 {[%emt 0:0:0]} 13. Bxc4 {[%emt 0:0:17]} Bb7 {[%emt 0:0:4]} 14. Ne3 {[%emt 0:0:46]} Be7 {[%emt 0:1:17]} 15. f5 {[%emt 0:1:28]} Bh4+ {[%emt 0:1:51]} 16. Ke2 {[%emt 0:0:2]
} 0-0 {[%emt 0:2:19]} 17. fxe6 {[%emt 0:1:57]} fxe6 {[%emt 0:0:0]} 18. Bxe6+ {[%emt 0:0:25]} Kh8 {[%emt 0:0:1]} 19. Rhf1 {[%emt 0:0:0]} Qe7 {[%emt 0:3:48]} 20. Bxd7 {[%emt 0:0:38]} Qxd7 {[%emt 0:0:2]} 21. Qxb4 {[%emt 0:0:2]} Rfd8 {[%emt 0:3:12]} 22. Rf4 {[%emt 0:5:26]} a5 {[%emt 0:0:47]
} 23. Qb6 {[%emt 0:2:1]} Ba6+ {[%emt 0:0:55]} 24. Kd2 {[%emt 0:0:17]
} Bg5 {[%emt 0:1:14]} 25. e6 {[%emt 0:1:44]} Qa4 {[%emt 0:0:0]} 26. Rg4 {[%emt 0:1:26]} Qc4 {[%emt 0:0:46]} 27. Re1 {[%emt 0:1:45]} Qd3+ {[%emt 0:0:27]} 28. Kc1 {[%emt 0:0:2]} Bxe3+ {[%emt 0:0:12]} 29. Bxe3 {[%emt 0:0:32]} Rac8+ {[%emt 0:0:1]} 0-1

[Event "FIDE World Rapid-ch Open 2018"]
[White "Tomashevsky, Evgeny"]
[Black "Gasanov, Eldar"]
[Site "St. Petersburg"]
[Round "9.48"]
[Annotator "ChessBase"]
[Result "1-0"]
[Date "2018.12.27"]
[WhiteElo "2705"]
[BlackElo "2499"]
[PlyCount "83"]
[TimeControl "900+10"]

1. c4 {[%emt 0:0:0]} e5 {[%emt 0:0:20]} 2. Nc3 {[%emt 0:0:0]} d6 {[%emt 0:0:0]} 3. Nf3 {[%emt 0:0:13]} f5 {[%emt 0:0:19]} 4. d4 {[%emt 0:0:3]} e4 {[%emt 0:0:8]
} 5. Ng5 {[%emt 0:0:2]} Be7 {[%emt 0:0:18]} 6. h4 {[%emt 0:0:0]} Nf6 {[%emt 0:0:26]} 7. e3 {[%emt 0:0:11]} c6 {[%emt 0:0:17]} 8. Be2 {[%emt 0:0:15]
} Na6 {[%emt 0:0:11]} 9. d5 {[%emt 0:0:8]} Nc7 {[%emt 0:0:25]
} 10. b3 {[%emt 0:5:9]} 0-0 {[%emt 0:2:48]} 11. Nh3 {[%emt 0:1:48]} Nd7 {[%emt 0:0:50]
} 12. g3 {[%emt 0:0:12]} Bf6 {[%emt 0:1:6]} 13. Bb2 {[%emt 0:0:0]} Ne5 {[%emt 0:0:31]} 14. Nf4 {[%emt 0:0:8]} g6 {[%emt 0:0:45]} 15. dxc6 bxc6 {[%emt 0:0:15]} 16. Kf1 {[%emt 0:0:36]} Ne6 {[%emt 0:0:46]} 17. Kg2 {[%emt 0:1:34]} Qe7 {[%emt 0:0:36]} 18. b4 {[%emt 0:1:14]} Rb8 {[%emt 0:0:0]} 19. b5 {[%emt 0:0:5]} Nxf4+ {[%emt 0:2:55]} 20. exf4 {[%emt 0:0:1]
} Nd7 {[%emt 0:0:42]} 21. Rb1 {[%emt 0:2:14]} Bb7 {[%emt 0:0:30]} 22. h5 {[%emt 0:0:49]
} Nb6 {[%emt 0:0:33]} 23. hxg6 {[%emt 0:1:13]} hxg6 {[%emt 0:0:0]} 24. a4 {[%emt 0:0:0]} cxb5 {[%emt 0:0:16]} 25. cxb5 {[%emt 0:0:10]} Rbc8 {[%emt 0:0:23]} 26. Rc1 {[%emt 0:1:2]} Qe6 {[%emt 0:0:21]} 27. Ba1 {[%emt 0:0:51]
} Kg7 {[%emt 0:0:28]} 28. g4 {[%emt 0:0:51]} e3+ {[%emt 0:0:0]} 29. Bf3 {[%emt 0:0:0]} Bxf3+ {[%emt 0:0:48]} 30. Qxf3 {[%emt 0:0:2]} fxg4 {[%emt 0:0:20]} 31. Qxe3 {[%emt 0:0:2]} Qb3 {[%emt 0:0:21]} 32. f5 {[%emt 0:0:30]
} Rh8 {[%emt 0:0:11]} 33. Rxh8 {[%emt 0:0:30]} Rxh8 {[%emt 0:0:0]} 34. Qe6 {[%emt 0:0:2]} Qxe6 {[%emt 0:0:10]} 35. fxe6 {[%emt 0:0:1]
} Re8 {[%emt 0:0:5]} 36. a5 {[%emt 0:0:9]} Nc4 {[%emt 0:0:17]} 37. Nd5 {[%emt 0:0:1]
} Bxa1 {[%emt 0:0:8]} 38. Rxc4 {[%emt 0:0:4]} Rxe6 {[%emt 0:0:0]} 39. Rc7+ {[%emt 0:0:26]} Kh6 {[%emt 0:0:2]} 40. Re7 {[%emt 0:0:33]} Rxe7 {[%emt 0:0:22]} 41. Nxe7 {[%emt 0:0:1]} Bc3 {[%emt 0:0:15]} 42. b6 {[%emt 0:0:8]
} 1-0